Cogmind - Beta 13 @@@ ROGUE MODE // 2024.05.06 @ 17:32:02 Player: Chickoo Result: Destroyed by as-50761 with Assembled Blade Performance ------------- Evolutions (0) 0 Regions Visited (2) 400 Robots Destroyed (13) 65 Value Destroyed (353) 353 Prototype IDs (2) 40 Alien Tech Used (0) 0 Bonus (0) 0 TOTAL SCORE: 858 Bonus ------- None Cogmind --------- Core Integrity 0/250 Matter 248/300 Energy 92/100 System Corruption 0% Temperature Cool (0) Movement Core (100) Ox1 Location -10/Mines Parts ------- > --- POWER (1) -------- (None) > --- PROPULSION (2) --- (None) > --- UTILITY (2) ------ Sensor Array > --- WEAPON (2) ------- Ripper > --- INVENTORY (5) ---- Ion Engine Light Treads Light Treads Medium Storage Unit Peak State ------------ > --- POWER ------------ Ion Engine > --- PROPULSION ------- Light Treads Light Treads > --- UTILITY ---------- Small Storage Unit Medium Storage Unit > --- WEAPON ----------- Assault Rifle Assault Rifle > --- INVENTORY -------- Ion Engine [Rating: 7] Favorites ----------- Power Ion Engine Engine Ion Engine Propulsion Light Treads Treads Light Treads Leg Aluminum Leg Utility Large Storage Unit Device Sensor Array Storage Large Storage Unit Processor Signal Interpreter Weapon Assault Rifle Ballistic Gun Assault Rifle Slashing Weapon Ripper Build | -11 -10 -10 ------- Run | Yrd Mat Min Slots Evolved . | . . . Power . | . . . Propulsion . | . . . Utility . | . . . Weapon . | . . . Parts Attached 15 | 7 6 2 Power 1 | 1 . . Engine 1 | 1 . . Core . | . . . Reactor . | . . . Propulsion 5 | 3 2 . Treads 4 | 2 2 . Leg 1 | 1 . . Wheel . | . . . Hover . | . . . Flight . | . . . Utility 6 | 1 4 1 Device 2 | . 1 1 Storage 3 | 1 2 . Processor 1 | . 1 . Hackware . | . . . Protection . | . . . Artifact . | . . . Weapon 3 | 2 . 1 Energy Gun . | . . . Energy Cannon . | . . . Ballistic Gun 2 | 2 . . Ballistic Cannon . | . . . Launcher . | . . . Special Weapon . | . . . Impact Weapon . | . . . Slashing Weapon 1 | . . 1 Piercing Weapon . | . . . Special Melee Weapon . | . . . Unidentified Prototypes . | . . . Parts Lost 3 | . . 3 Power . | . . . Propulsion 1 | . . 1 Utility . | . . . Weapon 2 | . . 2 Highest Loss Streak 3 | . . 3 To Critical Strikes . | . . . Average Slot Usage (%) 92 | . 95 77 Engine 13 | . 14 10 Treads 27 | . 28 20 Device 8 | . 9 1 Storage 13 | . 14 10 Processor 1 | . . 10 Ballistic Gun 27 | . 28 20 Naked Turns 6 | . . 6 Heaviest Build 30 | 14 30 29 Greatest Support 40 | 40 40 40 Greatest Overweight (x) 1 | 1 . 1 Average Overweight (x) . | . . . Largest Inventory Capacity 15 | 8 15 15 Average Capacity 13 | 7 13 12 Most Carried 6 | 1 6 6 Average Carried 2 | . 2 5 Final Capacity 15 | 8 15 5 Final Carried 6 | 1 6 4 Class Distribution -------------------- 100% | Mutant Dominant Class ---------------- Mutant | -10/Materials Mutant | -10/Mines Resources | -11 -10 -10 ----------- Run | Yrd Mat Min Matter Collected 463 | 221 219 23 Remotely . | . . . Salvage Created 416 | . 406 10 Parts 28 | . 28 . Haulers Intercepted . | . . . Recyclers Shooed . | . . . Parts Field Recycled . | . . . Retrieved Matter . | . . . Parts Self-Destructed . | . . . Prevented . | . . . Kills | -11 -10 -10 ------- Run | Yrd Mat Min Combat Hostiles Destroyed 11 | . 10 1 Guns 11 | . 10 1 Classes Destroyed 4 | . 3 1 Watcher 3 | . 3 . Swarmer 2 | . 2 . Grunt 8 | . 8 . Assembled 1 | . . 1 Best Kill Streak 4 | . 4 1 Combat Bots Only 2 | . 2 1 Max Kills in Single Turn 1 | . 1 1 Gunslinging . | . . . Exploded . | . . . Melee . | . . . Uniques/NPCs Destroyed . | . . . Combat | -11 -10 -10 -------- Run | Yrd Mat Min Hostile Shots Fired 58 | . 39 19 Missed 17 | . 12 5 Damage Taken 909 | . 328 581 Core 264 | . 41 223 Absorbed by Shields . | . . . Core Remaining (%) 100 | 100 . . Volleys Fired 30 | . 28 2 Largest 2 | . 2 2 Hottest 40 | . 40 40 Shots Fired 60 | . 56 4 Gun 60 | . 56 4 Cannon . | . . . Launcher . | . . . Special . | . . . Kinetic 60 | . 56 4 Thermal . | . . . Explosive . | . . . Electromagnetic . | . . . Robot Hit Streak 9 | . 9 2 Robot Miss Streak 3 | . 3 1 Penetration Max . | . . . Secondary Targets 3 | . 2 1 Max Gunslinging Chain 1 | . 1 1 Shots Hit Robots 39 | . 36 3 Core Hits 20 | . 19 1 Critical Kills . | . . . Critical Parts Destroyed . | . . . Critical Strikes . | . . . Melee Attacks 3 | . . 3 Impact . | . . . Slashing 3 | . . 3 Piercing . | . . . Sneak Attacks . | . . . Combat Hostiles . | . . . Follow-up Attacks . | . . . Damage Inflicted 560 | . 486 74 Guns 510 | . 486 24 Cannons . | . . . Explosions . | . . . Melee 50 | . . 50 Ramming . | . . . Kinetic 510 | . 486 24 Thermal . | . . . Explosive . | . . . Electromagnetic . | . . . Impact . | . . . Slashing 50 | . . 50 Piercing . | . . . Highest Corruption . | . . . Average Corruption . | . . . Corruption Purged . | . . . Corruption Blocked . | . . . Overload Shots . | . . . Overflow Damage 10 | . . 10 Projectiles . | . . . Explosions . | . . . Melee 10 | . . 10 Knockbacks . | . . . Impact . | . . . Kinetic . | . . . Secondary . | . . . Self-Inflicted Damage . | . . . Shots . | . . . Rammed . | . . . Targets Rammed . | . . . Kicked . | . . . Crushed . | . . . Highest Temperature 2 | . 2 . Average Temperature 2 | . 2 . Received Heat Transfer 131 | . 111 20 Siege Activations . | . . . Robots Corrupted . | . . . Combat Hostiles . | . . . Parts Fried . | . . . Impact Corruptions . | . . . Robots Melted . | . . . Combat Hostiles . | . . . Parts Melted . | . . . Heat Transferred . | . . . Parts Sabotaged . | . . . Parts Stolen . | . . . Parts Stripped . | . . . Power Chain Reactions . | . . . Alert | -11 -10 -10 ------- Run | Yrd Mat Min Peak Influence 228 | . 228 75 Initial 60 | . . 60 Average 90 | . 106 57 Maximum Alert Level 1 | . 1 . Low Security (%) 96 | 100 94 100 Level 1 4 | . 5 . Level 2 . | . . . Level 3 . | . . . Level 4 . | . . . Level 5 . | . . . High Security . | . . . Max Security . | . . . Squads Dispatched 4 | . 4 . Investigation 3 | . 3 . Extermination . | . . . Reinforcement 1 | . 1 . Assault . | . . . Garrison . | . . . Intercept . | . . . Searches Triggered . | . . . Construction Impeded . | . . . Haulers Reinforced . | . . . Active Scanning Responses . | . . . Cargo Convoy Interrupts . | . . . Stealth | -11 -10 -10 --------- Run | Yrd Mat Min Distress Signals . | . . . Communications Jammed . | . . . Distress Signals . | . . . Times Spotted 30 | . 14 16 Peak Tracking Total 8 | . 2 8 Tactical Retreats 2 | . . 2 Traps | -11 -10 -10 ------- Run | Yrd Mat Min Traps Triggered 2 | . 2 . Indirectly . | . . . Trap Hack Attempts . | . . . Triggered . | . . . Disarmed . | . . . Reprogrammed . | . . . Reused . | . . . Traps Extracted . | . . . Installed . | . . . Triggered . | . . . Machines | -11 -10 -10 ---------- Run | Yrd Mat Min Machines Disabled . | . . . Max in Single Turn . | . . . Machines Repaired . | . . . Machines Dismantled . | . . . Machines Sabotaged . | . . . Overloaded Fab Kills . | . . . Hacking | -11 -10 -10 --------- Run | Yrd Mat Min Machines Accessed 7 | . 7 . Terminals 5 | . 5 . Fabricators . | . . . Repair Stations 1 | . 1 . Recycling Units 1 | . 1 . Scanalyzers . | . . . Garrison Access . | . . . Total Hacks 27 | . 27 . Successful 15 | . 15 . Failed 12 | . 12 . Catastrophic 2 | . 2 . Database Lockouts . | . . . Manual 14 | . 14 . Terminals 21 | . 21 . Fabricators . | . . . Repair Stations 3 | . 3 . Recycling Units 3 | . 3 . Scanalyzers . | . . . Garrison Access . | . . . Terminal Hacks 9 | . 9 . Robot Analysis 2 | . 2 . Prototype ID Bank 1 | . 1 . Locate Traps 2 | . 2 . Dispatch Records 1 | . 1 . Maintenance Status 1 | . 1 . Recall Investigation 1 | . 1 . Hauler Manifests 1 | . 1 . Fabricator Hacks . | . . . Repair Station Hacks 1 | . 1 . Scan Component 1 | . 1 . Recycling Unit Hacks 2 | . 2 . Report Inventory 1 | . 1 . Retrieve Components 1 | . 1 . Scanalyzer . | . . . Garrison Access Hacks . | . . . Unauthorized Hacks 3 | . 3 . Terminals 2 | . 2 . Botnet 2 | . 2 . Fabricators . | . . . Repair Stations . | . . . Recycling Units 1 | . 1 . Reject 1 | . 1 . Scanalyzers . | . . . Garrison Access . | . . . Data Cores Recovered . | . . . Used . | . . . Hacking Detections 7 | . 7 . Full Trace Events 4 | . 4 . Feedback Events . | . . . Feedback Blocked . | . . . Robot Schematics Acquired . | . . . Robots Built . | . . . Authchips . | . . . Time . | . . . Total Robot Build Rating . | . . . Part Schematics Acquired . | . . . Parts Built . | . . . Authchips . | . . . Time . | . . . Total Part Build Rating . | . . . Parts Repaired . | . . . Time . | . . . Parts Recycled . | . . . Recycled Matter . | . . . Retrieved Matter . | . . . Retrieved Components 2 | . 2 . Parts Scanalyzed . | . . . Part Schematics Acquired . | . . . Parts Damaged . | . . . Bothacking | -11 -10 -10 ------------ Run | Yrd Mat Min Used RIF Installer . | . . . Robots Hacked . | . . . Non-combat . | . . . Combat . | . . . Robot Hacks Applied . | . . . Relay Couplers Released . | . . . Fabnet Peak Effective % . | . . . Robots Rewired . | . . . Allies Hacked . | . . . Hacks Repelled . | . . . Allies | -11 -10 -10 -------- Run | Yrd Mat Min Total Allies . | . . . Largest Group . | . . . Highest-Rated Group . | . . . Highest-Rated Ally . | . . . Total Orders . | . . . Ally Attacks . | . . . Total Damage . | . . . Kills . | . . . Allies Corrupted . | . . . Allies Melted . | . . . Intel | -11 -10 -10 ------- Run | Yrd Mat Min Robot Analysis Total 2 | . 2 . Derelict Logs Recovered . | . . . Drone Launches . | . . . Drone Recoveries . | . . . Exploration | -11 -10 -10 ------------- Run | Yrd Mat Min Turns Passed 775 | 68 612 95 Spaces Moved 404 | 39 302 63 Core 28 | 6 . 22 Treads 374 | 31 302 41 Legs 2 | 2 . . Wheels . | . . . Hover . | . . . Flight . | . . . Fastest Speed 50 | 50 160 50 Average Speed 153 | 147 160 124 Slowest Speed 240 | 160 160 240 Overloaded Moves . | . . . Propulsion Burnouts . | . . . Robots Hopped . | . . . Cave-ins Triggered . | . . . Exploration Rate (%) 29 | 3 67 19 Regions Visited 2 Branch Regions 1 Pre-discovered Areas . | . . . Known Exits Taken 1 | . 1 . Unknown Exits Taken 1 | 1 . . Scrap Searched . | . . . Spaces Dug . | . . . Terrain Destroyed . | . . . Melee . | . . . Projectile . | . . . AOE . | . . . Terrain Rammed . | . . . Walls Destroyed . | . . . Machines Disabled . | . . . Actions | -11 -10 -10 --------- Run | Yrd Mat Min Total 491 | 47 374 70 Wait 30 | . 30 . Move 402 | 38 301 63 Hop . | . . . Pick Up 5 | 1 4 . Fast Attach 12 | 7 4 1 Attach 1 | . . 1 Detach 1 | . 1 . Swap 2 | . 2 . Drop 5 | 1 4 . Fire 30 | . 28 2 Melee 3 | . . 3 Ram . | . . . Kick . | . . . Crush . | . . . Escape Stasis . | . . . Rewire . | . . . Trap . | . . . Miscellaneous . | . . . Route ------- -11/Scrapyard -10/Materials (discovered 3 exits: *Mat x2 / *Min) -10/Mines (discovered 1 exit: *Mat) History --------- Turn | Location | Event 10 | -11/Scrapyard | Discovered new exit (range 15) 69 | -11/Scrapyard | Entered Materials 302 | -10/Materials | Build established: Mutant 316 | -10/Materials | Discovered new exit (range 13) 493 | -10/Materials | Discovered new exit (range 7) 617 | -10/Materials | Discovered new exit (range 16) 679 | -10/Materials | Identified exit to Mines 681 | -10/Materials | Entered Mines 683 | -10/Mines | Met a Derelict bent on vengeance 712 | -10/Mines | Discovered new exit (range 4) 714 | -10/Mines | Assembled infested the area 717 | -10/Mines | Identified exit to Materials 719 | -10/Mines | Assisted by a Guerilla fighting off Assembled 750 | -10/Mines | Core integrity fell below 50% 754 | -10/Mines | Core integrity fell below 20% 755 | -10/Mines | Released all parts (4) 766 | -10/Mines | A weapon hastily lodged in a ceiling crevice suddenly fell to the ground 776 | -10/Mines | Destroyed by as-50761 with Assembled Blade Last Messages --------------- 00745_ Assault Rifle destroyed. 00745_ as-65153 destroyed. 00748_ The unstable cave ceiling collapses. 00749_ Lgt. Treads destroyed. 00752_ The unstable cave ceiling collapses. 00753_ Assault Rifle destroyed. 00753_ D-53 Grenadier destroyed. 00755_ The unstable cave ceiling collapses. 00755_ Released Signal Interpreter. 00755_ Released Lrg. Storage Unit. 00755_ Released Ion Engine. 00755_ Released Lgt. Treads. 00756_ The unstable cave ceiling collapses. 00760_ U-05 Engineer lays Concrete. 00765_ Acquired 23 matter. 00766_ A Ripper has been hastily shoved under some rubble with a note attached: "Rip and tear!" 00767_ Acquired Ripper. 00773_ Destroyed Asb. Hover Unit. Map ----- +----------------------------------------------------+ | ?????????????????????????????????????????????????? | | ?????????????????????????????????????????????????? | | ?????????????????????????????????????????????????? | | ?????????????????????????????????????????????????? | | ?????????????????????????????????????????????????? | | ?????????????????????????????????????????????????? | | ?????????????????????????????????????????????????? | | ?????????????????????????????????????????????????? | | ?????????????????????????????????????????????????? | | ?????????????????????????????????????????????????? | | ?????????????????????????????????????????????????? | | ?????????????????????????????????????????????????? | | ?????????????????????????????????????????????????? | | ???????????????????????????????? ????????????????? | | ??????????????????????????????? ???????????????? | | ??????????????????????????????? ???????????????? | | ??????????????????????????????? ???????????????? | | ?????????????????????????????? #???????????????? | | ??????????????????????????????# #???????????????? | | ??????????????????????????????# #???????????????? | | ??????????????????????????????# #???????????????? | | ????????????????#?????????????# #???????????????? | | ???????????????## ???????????# #???????????????? | | ???????????????# #######??## #???????????????? | | ???????????????# #### #???????????????? | | ???????????????# @ ## #???????????????? | | ???????????????# aa ##??????????????? | | ??????????????# * = a ##?????????????? | | ?????????????# #### #?????????????? | | ?????????????# #???## a #?????????????? | | ?????????????# #?????## #?????????????? | | ?????????????# ########??### #?????????????? | | ?????????????## #??## ###### #?????????????? | | ??????????????## ##???# ## #?????????????? | | ???????????????# ?????# ## #?????????????? | | ???????????????# ##???# ## ###???????????? | | ????????????#### ##?## = ##? ##??????????? | | ????????????#%# #?# !* #??????????? | | ????????????? %| #### / ## ## ????????? | | ??????????????#* ## # ????? | | ?????????????#"" < ## # # #????? | | ??????????????## # ##????? | | ?????????????## ## ###?????? | | ?????????????# ## # ####???????? | | ?????????????# ######??????????? | | ?????????????## # # ####???????????????? | | ??????????????#### # # #??????????????????? | | ????????????????# #####??????????????????? | | ????????????????### ###???????????????????????? | | | +----------------------------------------------------+ Best States ------------- Heat Dissipation 25 Energy Generation 10 Energy Capacity 250 Matter Stores 300 Matter Capacity 300 Sight Range 16 Robot Scan Range 14 Terrain Scan Density 10 Evasion (%) 50 Recoil Reduction 2 Item Schematics ----------------- None Robot Schematics ------------------ None Fabricated ------------ Nothing Alien Tech Used ----------------- None Achievements -------------- None Challenges ------------ None Game ------ Seed OpticalAntimissileRouter Manual? 0 Play Time 00:15:33 Cumulative 32.4 hours Start 2024.05.06 @ 17:17:53 End 2024.05.06 @ 17:32:02 Sessions 1 Manual Loads 0 Difficulty Rogue Special Mode None Game No. 24 Rogue 24 Adventurer 0 Explorer 0 Win Type - Total 0 Types 0/0/0/0/0/0/0/0/0 Lore% 23 Gallery% 34 Achievement% 28 Wizard Run 0 Options --------- Layout 1 ASCII 0 Keyboard 0 Movement Mouse Keybinds 0 Fullscreen 1 Font 32/SmallcapsGlow Map View 50x35 Zoom Use 0% Tactical HUD 1 Map Filters NONE Filters NONE Steam 1 RUN: b9c3d039-62e5-495e-85b7-8e7a03c5c4f2